[Event "17th Memorial Lezcano Montalvo 2025"]
[Site "Gran Canaria"]
[Date "2025.04.17"]
[Round "6.10"]
[White "Tytynnik, Artem"]
[Black "Fiorito, Joaquin"]
[Result "0-1"]
[Annotator "RC"]
[ECO "E11"]
[WhiteElo "2209"]
[BlackElo "2402"]
[PlyCount "132"]
[EventDate "2025.04.13"]
[EventType "swiss"]
[EventCountry "ESP"]
[SourceTitle "playchess.com"]
[Source "ChessBase"]
[SourceQuality "1"]
[TimeControl "5400+30"]

1. d4 {[%emt 0:10:57]} Nf6 {[%emt 0:00:05]} 2. c4 {[%emt 0:00:15]} e6 {[%emt 0:00:05]} 3. g3 {[%emt 0:00:03]} d5 {[%emt 0:00:13]} 4. Nf3 {[%emt 0:00:08]} Bb4+ {[%emt 0:00:07]} 5. Bd2 {[%emt 0:00:05]} Be7 {[%emt 0:00:09]} 6. Qc2 {[%emt 0:00:08]} O-O {[%emt 0:00:22]} 7. Bg2 {[%emt 0:00:04]} c6 {[%emt 0:00:10]} 8. O-O {[%emt 0:00:08]} Nbd7 {[%emt 0:00:09]} 9. Rd1 {[%emt 0:00:08]} a5 {[%emt 0:00:13]} 10. Bf4 {[%emt 0:00:09]} h6 {[%emt 0:00:05]} 11. Nc3 {[%emt 0:00:19]} dxc4 {[%emt 0:00:07]} 12. Nd2 {[%emt 0:00:09]} Nb6 {[%emt 0:00:28]} 13. e4 {[%emt 0:00:11]} a4 {[%emt 0:00:07]} 14. a3 {[%emt 0:04:04]} Bd7 {[%emt 0:00:14]} 15. Bf1 {[%emt 0:06:20]} c5 {[%emt 0:00:49]} 16. dxc5 {[%emt 0:02:30]} Bxc5 {[%emt 0:00:09]} 17. Nxc4 {[%emt 0:01:00]} Nxc4 {[%emt 0:02:28]} 18. Bxc4 {[%emt 0:00:02]} Qe7 {[%emt 0:02:39]} 19. Be5 {[%emt 0:27:13]} Bc6 {[%emt 0:13:54]} 20. Bxf6 {[%emt 0:06:43]} Qxf6 {[%emt 0:00:12]} 21. Bb5 {[%emt 0:00:11]} Bd4 {[%emt 0:12:31]} 22. Bxc6 {[%emt 0:02:00]} bxc6 {[%emt 0:00:06]} 23. Rd2 {[%emt 0:03:34]} Bxc3 {[%emt 0:01:39]} 24. bxc3 {[%emt 0:01:15]} c5 {[%emt 0:02:54]} 25. Rb1 {[%emt 0:01:17]} Rab8 {[%emt 0:00:49]} 26. Rdd1 {[%emt 0:02:50]} Qf3 {[%emt 0:04:21]} 27. Qxa4 {[%emt 0:08:46]} Rxb1 {[%emt 0:01:14]} 28. Rxb1 {[%emt 0:00:03]} Qxc3 {[%emt 0:00:08]} 29. Qb3 {[%emt 0:01:34]} Qd4 {[%emt 0:00:16]} 30. Qc2 {[%emt 0:02:18]} Ra8 {[%emt 0:03:50]} 31. Rd1 {[%emt 0:02:42]} Qa4 {[%emt 0:01:16]} 32. Qxa4 {[%emt 0:08:35]} Rxa4 {[%emt 0:00:03]} 33. Rd8+ {[%emt 0:00:09]} Kh7 {[%emt 0:00:04]} 34. Rc8 {[%emt 0:00:03]} c4 {[%emt 0:00:42]} 35. Rc7 {[%emt 0:04:06]} Kg6 {[%emt 0:00:49]} 36. Kf1 {[%emt 0:00:28]} Kf6 {[%emt 0:01:16]} 37. Ke2 {[%emt 0:01:54]} g5 {[%emt 0:00:29]} 38. h3 {[%emt 0:02:21]} h5 {[%emt 0:01:35]} 39. Rc5 {[%emt 0:02:18]} h4 {[%emt 0:07:14]} 40. gxh4 {[%emt 0:00:38]} gxh4 {[%emt 0:00:02]} 41. Kf3 {[%emt 0:00:59]} Ke7 {[%emt 0:04:03]} 42. e5 {[%emt 0:00:45]} Rxa3+ {[%emt 0:00:45]} 43. Kg4 {[%emt 0:00:04]} Rc3 {[%emt 0:01:39]} 44. Kxh4 {[%emt 0:00:51]} Kf8 {[%emt 0:00:54]} 45. Kg4 {[%emt 0:00:45]} Kg7 {[%emt 0:00:23]} 46. Rc7 {[%emt 0:00:43]} Rc2 {[%emt 0:00:35]} 47. Kf3 {[%emt 0:00:39]} Rc1 {[%emt 0:00:38]} 48. Ke4 {[%emt 0:01:05]} c3 {[%emt 0:00:31]} 49. Kd3 {[%emt 0:00:26]} Rh1 {[%emt 0:00:05]} 50. f3 {[%emt 0:00:38]} Re1 {[%emt 0:02:09]} 51. Rxc3 {[%emt 0:00:29]} Rxe5 {[%emt 0:00:04]} 52. Rc4 {[%emt 0:00:42]} Kg6 {[%emt 0:00:40]} 53. Rg4+ {[%emt 0:00:39]} Kh6 {[%emt 0:00:51]} 54. Rf4 {[%emt 0:00:13]} f5 {[%emt 0:00:14]} 55. Ra4 {[%emt 0:00:22]} Kh5 {[%emt 0:00:29]} 56. Rb4 {[%emt 0:00:23]} Re1 {[%emt 0:00:22]} 57. Kd2 {[%emt 0:00:46]} Rh1 {[%emt 0:00:33]} 58. Rb6 {[%emt 0:00:24]} Kh4 {[%emt 0:01:15]} 59. Rxe6 {[%emt 0:00:31]} Kg3 {[%emt 0:00:11]} 60. Re3 {[%emt 0:00:47]} f4 {[%emt 0:00:22]} 61. Re8 {[%emt 0:00:38]} Kxf3 {[%emt 0:01:40]} 62. Ra8 {[%emt 0:00:21]} Kf2 {[%emt 0:00:10]} 63. Ra2 {[%emt 0:00:25]} f3 {[%emt 0:00:14]} 64. Kd3+ {[%emt 0:00:25]} Kg3 {[%emt 0:00:11]} 65. Ra8 {[%emt 0:00:21]} f2 {[%emt 0:00:13]} 66. Rg8+ {[%emt 0:00:08]} Kh2 {[%emt 0:00:38]} 0-1

[Event "17th Memorial Lezcano Montalvo 2025"]
[Site "Gran Canaria"]
[Date "2025.04.17"]
[Round "6.11"]
[White "Ambartsumova, Karina"]
[Black "Moreno Diepa, Diego"]
[Result "1-0"]
[Annotator "RC"]
[ECO "E04"]
[WhiteElo "2405"]
[BlackElo "2243"]
[PlyCount "59"]
[EventDate "2025.04.13"]
[EventType "swiss"]
[EventCountry "ESP"]
[SourceTitle "playchess.com"]
[Source "ChessBase"]
[SourceQuality "1"]
[TimeControl "5400+30"]

1. Nf3 {[%emt 0:00:15]} Nf6 {[%emt 0:00:09]} 2. c4 {[%emt 0:00:30]} e6 {[%emt 0:00:20]} 3. g3 {[%emt 0:04:10]} d5 {[%emt 0:00:58]} 4. d4 {[%emt 0:04:50]} dxc4 {[%emt 0:01:32]} 5. Bg2 {[%emt 0:02:17]} c5 {[%emt 0:01:51]} 6. O-O {[%emt 0:03:26]} Nc6 {[%emt 0:00:47]} 7. dxc5 {[%emt 0:01:16]} Qxd1 {[%emt 0:08:06]} 8. Rxd1 {[%emt 0:00:16]} Bxc5 {[%emt 0:00:04]} 9. Nbd2 {[%emt 0:01:32]} O-O {[%emt 0:00:06]} 10. Nxc4 {[%emt 0:00:38]} Ng4 {[%emt 0:08:10]} 11. e3 {[%emt 0:04:51]} Rb8 {[%emt 0:01:56]} 12. Bd2 {[%emt 0:12:07]} b5 {[%emt 0:06:48]} 13. Na5 {[%emt 0:01:26]} Nxa5 {[%emt 0:00:04]} 14. Bxa5 {[%emt 0:00:05]} Bb7 {[%emt 0:00:25]} 15. b4 {[%emt 0:20:26]} Be7 {[%emt 0:06:39]} 16. Nd4 {[%emt 0:07:47]} Bxg2 {[%emt 0:07:40]} 17. Kxg2 {[%emt 0:00:11]} Rb7 {[%emt 0:00:03]} 18. Rac1 {[%emt 0:08:17]} Ne5 {[%emt 0:02:35]} 19. Rc7 {[%emt 0:00:21]} Rfb8 {[%emt 0:01:48]} 20. Nxb5 {[%emt 0:05:34]} Rxc7 {[%emt 0:06:02]} 21. Nxc7 {[%emt 0:00:17]} Nc6 {[%emt 0:00:14]} 22. Na6 {[%emt 0:01:22]} Rb7 {[%emt 0:01:11]} 23. Rc1 {[%emt 0:01:16]} Nxa5 {[%emt 0:01:58]} 24. Rc8+ {[%emt 0:01:03]} Bf8 {[%emt 0:00:04]} 25. bxa5 {[%emt 0:00:09]} g6 {[%emt 0:02:09]} 26. Nc5 {[%emt 0:00:22]} Re7 {[%emt 0:00:05]} 27. Rd8 {[%emt 0:04:56]} f6 {[%emt 0:01:47]} 28. a6 {[%emt 0:02:09]} Kf7 {[%emt 0:01:27]} 29. Ra8 {[%emt 0:00:08]} Rc7 {[%emt 0:02:01]} 30. Rxf8+ {[%emt 0:00:27]} 1-0

[Event "17th Memorial Lezcano Montalvo 2025"]
[Site "Gran Canaria"]
[Date "2025.04.17"]
[Round "6.12"]
[White "Rodriguez Lopez, David"]
[Black "Yelisieiev, Yevhenii"]
[Result "1-0"]
[Annotator "RC"]
[ECO "B52"]
[WhiteElo "2182"]
[BlackElo "2413"]
[PlyCount "117"]
[EventDate "2025.04.13"]
[EventType "swiss"]
[EventCountry "ESP"]
[SourceTitle "playchess.com"]
[Source "ChessBase"]
[SourceQuality "1"]
[TimeControl "5400+30"]

1. e4 {[%emt 0:00:04]} c5 {[%emt 0:00:04]} 2. Nf3 {[%emt 0:00:05]} d6 {[%emt 0:00:05]} 3. Bb5+ {[%emt 0:00:16]} Bd7 {[%emt 0:00:23]} 4. Bxd7+ {[%emt 0:00:06]} Nxd7 {[%emt 0:00:08]} 5. O-O {[%emt 0:00:07]} Ngf6 {[%emt 0:00:38]} 6. Re1 {[%emt 0:00:10]} e6 {[%emt 0:00:38]} 7. c3 {[%emt 0:03:13]} Be7 {[%emt 0:00:15]} 8. d4 {[%emt 0:00:10]} O-O {[%emt 0:00:44]} 9. Bf4 {[%emt 0:01:16]} Qb6 {[%emt 0:13:27]} 10. Qb3 {[%emt 0:06:29]} Rfc8 {[%emt 0:01:52]} 11. Qxb6 {[%emt 0:14:52]} axb6 {[%emt 0:02:50]} 12. Nbd2 {[%emt 0:12:54]} cxd4 {[%emt 0:02:36]} 13. Nxd4 {[%emt 0:02:16]} Nc5 {[%emt 0:05:10]} 14. Bg3 {[%emt 0:01:50]} Nd3 {[%emt 0:03:02]} 15. Reb1 {[%emt 0:00:14]} Nh5 {[%emt 0:09:50]} 16. Kf1 {[%emt 0:03:45]} g6 {[%emt 0:08:10]} 17. Ke2 {[%emt 0:03:51]} Nhf4+ {[%emt 0:00:44]} 18. Bxf4 {[%emt 0:01:40]} Nxf4+ {[%emt 0:00:02]} 19. Kf3 {[%emt 0:00:30]} e5 {[%emt 0:00:56]} 20. Ne2 {[%emt 0:03:50]} Ne6 {[%emt 0:03:17]} 21. g4 {[%emt 0:15:06]} b5 {[%emt 0:00:32]} 22. Kg2 {[%emt 0:01:31]} Rd8 {[%emt 0:01:26]} 23. Nb3 {[%emt 0:01:32]} d5 {[%emt 0:06:13]} 24. exd5 {[%emt 0:02:19]} Rxd5 {[%emt 0:00:05]} 25. Kf1 {[%emt 0:00:39]} Bh4 {[%emt 0:10:20]} 26. a3 {[%emt 0:02:19]} Rd3 {[%emt 0:01:39]} 27. Rd1 {[%emt 0:01:06]} Rad8 {[%emt 0:00:16]} 28. Rxd3 {[%emt 0:00:06]} Rxd3 {[%emt 0:00:02]} 29. Kg2 {[%emt 0:01:46]} f5 {[%emt 0:00:52]} 30. gxf5 {[%emt 0:00:23]} gxf5 {[%emt 0:00:02]} 31. a4 {[%emt 0:01:08]} f4 {[%emt 0:05:06]} 32. f3 {[%emt 0:00:16]} e4 {[%emt 0:00:50]} 33. Ned4 {[%emt 0:00:12]} Ng5 {[%emt 0:03:22]} 34. fxe4 {[%emt 0:02:50]} f3+ {[%emt 0:00:41]} 35. Kh1 {[%emt 0:03:05]} bxa4 {[%emt 0:02:13]} 36. Nc5 {[%emt 0:00:01]} Rd2 {[%emt 0:00:21]} 37. Rf1 {[%emt 0:02:01]} Bf2 {[%emt 0:03:50]} 38. Nxa4 {[%emt 0:01:16]} b5 {[%emt 0:07:16]} 39. Nc5 {[%emt 0:00:18]} b4 {[%emt 0:00:31]} 40. h4 {[%emt 0:02:11]} Nh3 {[%emt 0:01:21]} 41. Nxf3 {[%emt 0:00:42]} Rxb2 {[%emt 0:01:06]} 42. Nd3 {[%emt 0:00:45]} Re2 {[%emt 0:01:15]} 43. Kg2 {[%emt 0:00:21]} Bd4+ {[%emt 0:03:10]} 44. Kxh3 {[%emt 0:01:44]} Bxc3 {[%emt 0:00:07]} 45. Nc5 {[%emt 0:00:25]} Bf6 {[%emt 0:01:32]} 46. Nd7 {[%emt 0:07:36]} Bc3 {[%emt 0:00:53]} 47. Ng5 {[%emt 0:01:02]} Re3+ {[%emt 0:03:31]} 48. Kg4 {[%emt 0:00:06]} h6 {[%emt 0:00:34]} 49. Rf8+ {[%emt 0:00:30]} Kg7 {[%emt 0:00:01]} 50. Ne6+ {[%emt 0:00:32]} Kh7 {[%emt 0:00:26]} 51. Nf6+ {[%emt 0:02:44]} Bxf6 {[%emt 0:00:12]} 52. Rxf6 {[%emt 0:00:01]} Rxe4+ {[%emt 0:00:14]} 53. Nf4 {[%emt 0:00:06]} b3 {[%emt 0:01:28]} 54. Rf7+ {[%emt 0:00:17]} Kg8 {[%emt 0:00:10]} 55. Rb7 {[%emt 0:00:03]} Re3 {[%emt 0:00:36]} 56. Kh5 {[%emt 0:00:36]} Rf3 {[%emt 0:00:12]} 57. Ng6 {[%emt 0:01:33]} b2 {[%emt 0:00:46]} 58. Kxh6 {[%emt 0:00:14]} b1=Q {[%emt 0:00:56]} 59. Rg7# {[%emt 0:00:07]} 1-0

[Event "17th Memorial Lezcano Montalvo 2025"]
[Site "Gran Canaria"]
[Date "2025.04.17"]
[Round "6.13"]
[White "Strikovic, Aleksa"]
[Black "Estremera Panos, Sergio"]
[Result "1-0"]
[Annotator "RC"]
[ECO "A33"]
[WhiteElo "2367"]
[BlackElo "2195"]
[PlyCount "88"]
[EventDate "2025.04.13"]
[EventType "swiss"]
[EventCountry "ESP"]
[SourceTitle "playchess.com"]
[Source "ChessBase"]
[SourceQuality "1"]
[TimeControl "5400+30"]

1. c4 {[%emt 0:00:03]} c5 {[%emt 0:02:31]} 2. Nf3 {[%emt 0:00:20]} Nf6 {[%emt 0:00:49]} 3. Nc3 {[%emt 0:00:19]} Nc6 {[%emt 0:00:20]} 4. d4 {[%emt 0:00:13]} cxd4 {[%emt 0:00:15]} 5. Nxd4 {[%emt 0:00:05]} e6 {[%emt 0:00:40]} 6. a3 {[%emt 0:00:09]} d5 {[%emt 0:00:55]} 7. cxd5 {[%emt 0:00:21]} exd5 {[%emt 0:00:29]} 8. Bg5 {[%emt 0:00:12]} Bc5 {[%emt 0:01:06]} 9. Nxc6 {[%emt 0:00:24]} bxc6 {[%emt 0:00:07]} 10. e3 {[%emt 0:00:10]} Bd6 {[%emt 0:01:36]} 11. Be2 {[%emt 0:01:09]} Rb8 {[%emt 0:02:32]} 12. Qc2 {[%emt 0:01:47]} O-O {[%emt 0:08:34]} 13. Rc1 {[%emt 0:00:48]} Be5 {[%emt 0:02:33]} 14. Bh4 {[%emt 0:26:11]} Qb6 {[%emt 0:30:41]} 15. Na4 {[%emt 0:16:40]} Qa5+ {[%emt 0:00:24]} 16. Kf1 {[%emt 0:00:05]} Bf5 {[%emt 0:19:43]} 17. Qxf5 {[%emt 0:04:47]} Qxa4 {[%emt 0:00:07]} 18. Bxf6 {[%emt 0:11:33]} Bxf6 {[%emt 0:00:30]} 19. Bd3 {[%emt 0:00:05]} Rfd8 {[%emt 0:02:51]} 20. b4 {[%emt 0:03:27]} Qxa3 {[%emt 0:02:09]} 21. Qxh7+ {[%emt 0:06:23]} Kf8 {[%emt 0:00:08]} 22. Rxc6 {[%emt 0:00:08]} Qa4 {[%emt 0:14:57]} 23. Rc1 {[%emt 0:00:48]} Rbc8 {[%emt 0:02:58]} 24. Rb1 {[%emt 0:08:58]} Qa3 {[%emt 0:03:05]} 25. Ke2 {[%emt 0:03:03]} Rc3 {[%emt 0:01:17]} 26. Rhd1 {[%emt 0:04:53]} d4 {[%emt 0:00:28]} 27. Ra1 {[%emt 0:01:48]} Qb2+ {[%emt 0:01:16]} 28. Kf3 {[%emt 0:00:01]} Ra3 {[%emt 0:00:56]} 29. Rab1 {[%emt 0:04:36]} Qa2 {[%emt 0:00:28]} 30. Rbc1 {[%emt 0:00:02]} Rc3 {[%emt 0:00:28]} 31. Rxc3 {[%emt 0:00:08]} dxc3 {[%emt 0:00:01]} 32. Qh8+ {[%emt 0:00:08]} Ke7 {[%emt 0:00:01]} 33. Qxd8+ {[%emt 0:01:40]} Kxd8 {[%emt 0:00:02]} 34. Bc4+ {[%emt 0:00:07]} Qd2 {[%emt 0:00:07]} 35. Rxd2+ {[%emt 0:00:04]} cxd2 {[%emt 0:00:10]} 36. Ke2 {[%emt 0:00:02]} Bc3 {[%emt 0:00:26]} 37. Bxf7 {[%emt 0:00:04]} Bxb4 {[%emt 0:00:03]} 38. h4 {[%emt 0:00:16]} a5 {[%emt 0:00:09]} 39. Bb3 {[%emt 0:00:05]} Ke7 {[%emt 0:02:47]} 40. f4 {[%emt 0:00:24]} g6 {[%emt 0:01:04]} 41. Bc2 {[%emt 0:00:20]} Kf6 {[%emt 0:00:14]} 42. g4 {[%emt 0:00:31]} Bc3 {[%emt 0:00:51]} 43. Kd3 {[%emt 0:05:26]} Bb4 {[%emt 0:00:10]} 44. e4 {[%emt 0:00:10]} Ke7 {[%emt 0:01:32]} 1-0

[Event "17th Memorial Lezcano Montalvo 2025"]
[Site "Gran Canaria"]
[Date "2025.04.17"]
[Round "6.14"]
[White "Gonzalez Martinez, Miguel Angel"]
[Black "Garcia Padron, Jose"]
[Result "0-1"]
[Annotator "RC"]
[ECO "C56"]
[WhiteElo "2134"]
[BlackElo "2355"]
[PlyCount "68"]
[EventDate "2025.04.13"]
[EventType "swiss"]
[EventCountry "ESP"]
[SourceTitle "playchess.com"]
[Source "ChessBase"]
[SourceQuality "1"]
[TimeControl "5400+30"]

1. e4 {[%emt 1:31:00]} e5 {[%emt 0:01:41]} 2. Nf3 {[%emt 0:00:00]} Nc6 {[%emt 0:00:05]} 3. d4 {[%emt 0:00:00]} exd4 {[%emt 0:00:05]} 4. Bc4 {[%emt 0:00:00]} Nf6 {[%emt 0:00:05]} 5. e5 {[%emt 0:00:00]} d5 {[%emt 0:00:15]} 6. Bb5 {[%emt 0:00:00]} Ne4 {[%emt 0:00:05]} 7. Nxd4 {[%emt 0:00:00]} Bd7 {[%emt 0:00:07]} 8. Bxc6 {[%emt 0:00:00]} bxc6 {[%emt 0:00:04]} 9. O-O {[%emt 0:00:00]} Bc5 {[%emt 0:00:21]} 10. f3 {[%emt 0:00:00]} Ng5 {[%emt 0:00:10]} 11. f4 {[%emt 0:00:00]} Ne4 {[%emt 0:05:42]} 12. Be3 {[%emt 0:00:00]} Bb6 {[%emt 0:00:05]} 13. c3 {[%emt 0:00:00]} c5 {[%emt 0:02:32]} 14. Nc2 {[%emt 0:00:00]} Bc6 {[%emt 0:04:35]} 15. a4 {[%emt 0:00:00]} a5 {[%emt 0:00:27]} 16. Qg4 {[%emt 0:00:00]} g6 {[%emt 0:05:30]} 17. Rd1 {[%emt 0:00:00]} Qe7 {[%emt 0:01:34]} 18. Nd2 {[%emt 0:00:00]} f5 {[%emt 0:04:17]} 19. exf6 {[%emt 0:00:00]} Nxf6 {[%emt 0:00:08]} 20. Qh4 {[%emt 0:00:00]} O-O {[%emt 0:01:19]} 21. Re1 {[%emt 0:00:00]} Qd7 {[%emt 0:01:22]} 22. Nf3 {[%emt 0:00:00]} Qf5 {[%emt 0:11:34]} 23. Ne5 {[%emt 0:00:00]} Bb7 {[%emt 0:03:37]} 24. Rac1 {[%emt 0:00:00]} Ne4 {[%emt 0:00:08]} 25. Ng4 {[%emt 0:00:00]} Qd7 {[%emt 0:06:51]} 26. b4 {[%emt 0:01:26]} axb4 {[%emt 0:00:39]} 27. cxb4 {[%emt 0:00:09]} d4 {[%emt 0:01:41]} 28. f5 {[%emt 0:05:16]} dxe3 {[%emt 0:01:33]} 29. Rcd1 {[%emt 0:00:43]} Qg7 {[%emt 0:01:05]} 30. fxg6 {[%emt 0:02:28]} cxb4 {[%emt 0:01:54]} 31. Ncxe3 {[%emt 0:03:07]} Qxg6 {[%emt 0:01:05]} 32. Rd7 {[%emt 0:01:06]} Nf6 {[%emt 0:00:19]} 33. Nh6+ {[%emt 0:00:50]} Kh8 {[%emt 0:00:09]} 34. Re7 {[%emt 0:00:14]} Qxg2# {[%emt 0:46:26]} 0-1

[Event "17th Memorial Lezcano Montalvo 2025"]
[Site "Gran Canaria"]
[Date "2025.04.17"]
[Round "6.15"]
[White "Sanz Wawer, Daniel"]
[Black "Sukhodolskyi, Oleksii"]
[Result "1-0"]
[Annotator "RC"]
[ECO "C43"]
[WhiteElo "2316"]
[BlackElo "2070"]
[PlyCount "117"]
[EventDate "2025.04.13"]
[EventType "swiss"]
[EventCountry "ESP"]
[SourceTitle "playchess.com"]
[Source "ChessBase"]
[SourceQuality "1"]
[TimeControl "5400+30"]

1. e4 {[%emt 0:02:41]} e5 {[%emt 0:00:12]} 2. Nf3 {[%emt 0:00:15]} Nf6 {[%emt 0:00:09]} 3. d4 {[%emt 0:01:07]} Nxe4 {[%emt 0:00:48]} 4. Bd3 {[%emt 0:00:06]} Nc6 {[%emt 0:00:51]} 5. dxe5 {[%emt 0:05:07]} d5 {[%emt 0:11:27]} 6. O-O {[%emt 0:06:47]} Bg4 {[%emt 0:08:24]} 7. Bf4 {[%emt 0:07:39]} Bc5 {[%emt 0:06:44]} 8. Nc3 {[%emt 0:05:15]} Nxc3 {[%emt 0:01:19]} 9. bxc3 {[%emt 0:00:05]} Qd7 {[%emt 0:07:18]} 10. Rb1 {[%emt 0:01:47]} O-O-O {[%emt 0:12:38]} 11. Rb5 {[%emt 0:03:44]} Bb6 {[%emt 0:01:47]} 12. a4 {[%emt 0:05:47]} f6 {[%emt 0:16:45]} 13. exf6 {[%emt 0:03:02]} gxf6 {[%emt 0:00:07]} 14. Re1 {[%emt 0:03:52]} Rhe8 {[%emt 0:08:05]} 15. Rxe8 {[%emt 0:01:01]} Rxe8 {[%emt 0:00:33]} 16. Bf1 {[%emt 0:01:20]} Qf5 {[%emt 0:11:39]} 17. Bg3 {[%emt 0:49:25]} Bxf3 {[%emt 0:00:52]} 18. Qxf3 {[%emt 0:00:00]} Qxf3 {[%emt 0:00:16]} 19. gxf3 {[%emt 0:00:00]} d4 {[%emt 0:01:18]} 20. c4 {[%emt 0:00:00]} Ne5 {[%emt 0:00:53]} 21. a5 {[%emt 0:00:00]} c6 {[%emt 0:05:51]} 22. Bh3+ {[%emt 0:00:00]} Kb8 {[%emt 0:00:36]} 23. Rxe5 {[%emt 0:00:00]} fxe5 {[%emt 0:00:08]} 24. axb6 {[%emt 0:00:00]} axb6 {[%emt 0:01:06]} 25. Bf5 {[%emt 0:00:00]} Re7 {[%emt 0:00:58]} 26. Kf1 {[%emt 0:00:00]} c5 {[%emt 0:02:46]} 27. Ke2 {[%emt 0:00:00]} Kc7 {[%emt 0:00:00]} 28. Kd3 {[%emt 0:00:00]} Kc6 {[%emt 0:00:01]} 29. Be4+ {[%emt 0:00:00]} Kd6 {[%emt 0:00:41]} 30. f4 {[%emt 0:00:00]} exf4 {[%emt 0:00:36]} 31. Bxf4+ {[%emt 0:00:00]} Ke6 {[%emt 0:00:10]} 32. Bg3 {[%emt 0:00:00]} Kd7 {[%emt 0:00:51]} 33. f4 {[%emt 0:00:00]} b5 {[%emt 0:00:39]} 34. cxb5 {[%emt 0:00:00]} Kc7 {[%emt 0:00:28]} 35. f5+ {[%emt 0:00:00]} Kb6 {[%emt 0:00:04]} 36. f6 {[%emt 0:00:00]} Rd7 {[%emt 0:00:05]} 37. Kc4 {[%emt 0:00:00]} d3 {[%emt 0:01:24]} 38. cxd3 {[%emt 0:00:00]} Rd4+ {[%emt 0:00:23]} 39. Kc3 {[%emt 0:00:00]} Rd7 {[%emt 0:00:24]} 40. Be5 {[%emt 0:00:00]} Kxb5 {[%emt 0:00:41]} 41. Bf5 {[%emt 0:00:00]} Rf7 {[%emt 0:00:30]} 42. Be6 {[%emt 0:00:00]} Rf8 {[%emt 0:00:04]} 43. f7 {[%emt 0:00:00]} Kc6 {[%emt 0:00:55]} 44. Bg7 {[%emt 0:00:00]} Rxf7 {[%emt 0:00:08]} 45. Bxf7 {[%emt 0:00:00]} b5 {[%emt 0:00:20]} 46. h4 {[%emt 0:00:00]} c4 {[%emt 0:00:47]} 47. Bxc4 {[%emt 0:00:00]} bxc4 {[%emt 0:00:05]} 48. dxc4 {[%emt 0:00:00]} Kc5 {[%emt 0:00:09]} 49. h5 {[%emt 0:00:00]} Kd6 {[%emt 0:00:06]} 50. Kd4 {[%emt 0:00:00]} Kc6 {[%emt 0:00:04]} 51. Be5 {[%emt 0:00:00]} Kd7 {[%emt 0:00:09]} 52. Kd5 {[%emt 0:00:00]} Ke7 {[%emt 0:00:13]} 53. Kc6 {[%emt 0:00:00]} Kd8 {[%emt 0:00:09]} 54. Kb7 {[%emt 0:00:00]} h6 {[%emt 0:00:45]} 55. c5 {[%emt 0:00:00]} Ke8 {[%emt 0:00:04]} 56. c6 {[%emt 0:00:00]} Kf7 {[%emt 0:00:08]} 57. c7 {[%emt 0:00:00]} Ke7 {[%emt 0:00:07]} 58. c8=Q {[%emt 0:00:00]} Kf7 {[%emt 0:00:05]} 59. Bh2 {[%emt 0:00:00]} 1-0

[Event "17th Memorial Lezcano Montalvo 2025"]
[Site "Gran Canaria"]
[Date "2025.04.17"]
[Round "6.16"]
[White "Dubkov, Andrej"]
[Black "Hu, Jiani"]
[Result "1/2-1/2"]
[Annotator "RC"]
[ECO "D32"]
[WhiteElo "2307"]
[BlackElo "2091"]
[PlyCount "106"]
[EventDate "2025.04.13"]
[EventType "swiss"]
[EventCountry "ESP"]
[SourceTitle "playchess.com"]
[Source "ChessBase"]
[SourceQuality "1"]
[TimeControl "5400+30"]

1. c4 {[%emt 0:02:04]} e6 {[%emt 0:00:27]} 2. Nc3 {[%emt 0:00:08]} d5 {[%emt 0:00:35]} 3. d4 {[%emt 0:00:06]} c5 {[%emt 0:01:06]} 4. cxd5 {[%emt 0:00:08]} exd5 {[%emt 0:00:05]} 5. Nf3 {[%emt 0:00:04]} Nc6 {[%emt 0:00:17]} 6. dxc5 {[%emt 0:00:06]} d4 {[%emt 0:00:21]} 7. Na4 {[%emt 0:00:35]} Bxc5 {[%emt 0:00:30]} 8. Nxc5 {[%emt 0:00:06]} Qa5+ {[%emt 0:00:05]} 9. Bd2 {[%emt 0:00:04]} Qxc5 {[%emt 0:00:08]} 10. Rc1 {[%emt 0:00:04]} Qb6 {[%emt 0:00:18]} 11. e3 {[%emt 0:00:07]} dxe3 {[%emt 0:05:52]} 12. Bxe3 {[%emt 0:00:06]} Qb4+ {[%emt 0:02:34]} 13. Bd2 {[%emt 0:00:14]} Qe7+ {[%emt 0:02:35]} 14. Be2 {[%emt 0:00:06]} Nf6 {[%emt 0:00:21]} 15. O-O {[%emt 0:00:06]} O-O {[%emt 0:00:40]} 16. Re1 {[%emt 0:00:05]} Qd6 {[%emt 0:10:40]} 17. Qb3 {[%emt 0:00:07]} a5 {[%emt 0:18:13]} 18. Be3 {[%emt 0:10:19]} Ne4 {[%emt 0:12:04]} 19. Bd3 {[%emt 0:16:26]} Be6 {[%emt 0:08:47]} 20. Qd1 {[%emt 0:00:25]} f5 {[%emt 0:04:43]} 21. Ng5 {[%emt 0:14:56]} Nxg5 {[%emt 0:04:03]} 22. Bxg5 {[%emt 0:00:30]} Kh8 {[%emt 0:03:12]} 23. Be3 {[%emt 0:18:17]} Rfd8 {[%emt 0:02:08]} 24. Bb6 {[%emt 0:01:04]} Qxd3 {[%emt 0:03:03]} 25. Qxd3 {[%emt 0:04:14]} Rxd3 {[%emt 0:00:14]} 26. Rxe6 {[%emt 0:00:07]} Rd2 {[%emt 0:00:34]} 27. Rce1 {[%emt 0:00:24]} Kg8 {[%emt 0:00:56]} 28. R6e2 {[%emt 0:00:20]} Rxe2 {[%emt 0:01:17]} 29. Rxe2 {[%emt 0:00:04]} Kf7 {[%emt 0:05:34]} 30. Kf1 {[%emt 0:00:15]} Kf6 {[%emt 0:02:13]} 31. a4 {[%emt 0:01:56]} Ra6 {[%emt 0:00:50]} 32. Be3 {[%emt 0:00:31]} g5 {[%emt 0:06:26]} 33. Bd2 {[%emt 0:00:25]} Nb4 {[%emt 0:02:13]} 34. Bc3+ {[%emt 0:00:15]} Kg6 {[%emt 0:00:25]} 35. Re5 {[%emt 0:02:44]} Nd3 {[%emt 0:00:36]} 36. Rd5 {[%emt 0:00:38]} Nf4 {[%emt 0:01:52]} 37. Rd7 {[%emt 0:02:47]} Rb6 {[%emt 0:00:51]} 38. g3 {[%emt 0:00:22]} Ne6 {[%emt 0:00:17]} 39. Rd5 {[%emt 0:00:05]} Rc6 {[%emt 0:01:00]} 40. Rxa5 {[%emt 0:01:02]} Nc5 {[%emt 0:00:55]} 41. f3 {[%emt 0:01:53]} g4 {[%emt 0:00:42]} 42. Kf2 {[%emt 0:04:55]} gxf3 {[%emt 0:00:58]} 43. Kxf3 {[%emt 0:00:06]} Ne4 {[%emt 0:00:10]} 44. Bd4 {[%emt 0:00:39]} Nd2+ {[%emt 0:00:38]} 45. Ke2 {[%emt 0:01:39]} Nb3 {[%emt 0:00:10]} 46. Rd5 {[%emt 0:00:37]} Rc2+ {[%emt 0:00:35]} 47. Kd3 {[%emt 0:01:40]} Nxd4 {[%emt 0:00:20]} 48. Rxd4 {[%emt 0:01:14]} Rxb2 {[%emt 0:00:10]} 49. Rh4 {[%emt 0:00:06]} h5 {[%emt 0:01:42]} 50. Kc3 {[%emt 0:00:15]} Rf2 {[%emt 0:00:16]} 51. Kb4 {[%emt 0:00:15]} Kg5 {[%emt 0:00:30]} 52. Kc5 {[%emt 0:00:27]} Rb2 {[%emt 0:00:31]} 53. Kd6 {[%emt 0:02:58]} b5 {[%emt 0:00:27]} 1/2-1/2